fUSD/lending_fUSD_20260116
["ID","MTS","AMOUNT","RATE_DAILY","PERIOD"]
[402210290,1768605047058,-500.0,0.0001797,2]
[402210291,1768605047066,-1100.0,0.0001797,2]
[402210292,1768605047075,-500.0,0.0001797,2]
[402210293,1768605047085,-150.0,0.00017971,2]
[402210294,1768605047094,-1000.0,0.00017972,2]
[402210295,1768605047103,-161.53790585,0.00017972,2]
[402210296,1768605047112,-440.0,0.00017972,2]
[402210297,1768605047122,-14603.0,0.00017973,2]
[402210298,1768605047131,-30478.0,0.00017973,2]
[402210299,1768605047140,-500.0,0.00017973,2]
[402210300,1768605047149,-197.50988777,0.00017973,2]
[402210301,1768605047158,-500.0,0.00017973,2]
[402210302,1768605047167,-203.73721321,0.00017973,2]
[402210303,1768605047176,-372.89690242,0.00017973,2]
[402210304,1768605047186,-500.0,0.00017973,2]
[402210305,1768605047195,-500.0,0.00017973,2]
[402210306,1768605047204,-1000.0,0.00017973,2]
[402210307,1768605047213,-500.0,0.00017973,2]
[402210308,1768605047222,-150.0,0.00017973,2]
[402210309,1768605047232,-150.0,0.00017975,2]
[402210310,1768605047243,-1000.0,0.00017976,2]
[402210311,1768605047254,-150.0,0.00017978,2]
[402210312,1768605047263,-2000.0,0.0001798,2]
[402210313,1768605047273,-800.0,0.00017982,2]
[402210314,1768605047283,-1000.0,0.00017984,2]
[402210315,1768605047293,-566.80876335,0.0001799,2]
[402210316,1768605047303,-566.80876335,0.0001799,2]
[402210317,1768605047312,-1000.0,0.00017996,2]
[402210318,1768605047321,-187.326885,0.00017997,2]
[402210319,1768605047331,-150.0,0.00017999,2]
[402210320,1768605047340,-150.0,0.00017999,2]
[402210321,1768605047349,-277.95886969,0.00017999,2]
[402210322,1768605047358,-358640.2535404,0.00017999,2]
[402210323,1768605047368,-300.0,0.00017999,2]
[402210324,1768605047377,-666.0,0.00017999,2]
[402210325,1768605047386,-300.0,0.00017999,2]
[402210326,1768605047396,-299.2286621,0.00017999,2]
[402210327,1768605047405,-300.0,0.00017999,2]
[402210328,1768605047415,-666.0,0.00017999,2]
[402210329,1768605047425,-300.0,0.00017999,2]
[402210330,1768605047436,-300.0,0.00017999,2]
[402210331,1768605047446,-300.0,0.00017999,2]
[402210332,1768605047455,-300.0,0.00017999,2]
[402210333,1768605047465,-300.0,0.00017999,2]
[402210334,1768605047474,-666.0,0.00017999,2]
[402210335,1768605047483,-564.36146506,0.00017999,2]
[402210336,1768605047492,-200.00328439,0.00017999,2]
[402210337,1768605047503,-150.0,0.00017999,2]
[402210338,1768605047513,-300.0,0.00017999,2]
[402210339,1768605047523,-324.4858482,0.00017999,2]
[402210340,1768605047534,-4923048.89084113,0.00018,2]
[402210341,1768605051104,-613.0,0.00013844,2]
[402210342,1768605051116,-38157.2,0.00013844,2]
[402210343,1768605094410,4396.563,0.00013567,2]
[402210344,1768605094453,272.781,0.00013567,2]
[402210345,1768605099258,1600.0,0.000139,5]
[402210346,1768605119559,-2170.5061,0.00013744,2]
[402210347,1768605119674,-989.6538,0.00013744,2]
[402210348,1768605119817,-10000.01,0.00013744,2]
[402210349,1768605119965,-10000.01,0.00013744,2]
[402210350,1768605121738,-300.0,0.00013743,2]
[402210351,1768605121783,-9400.01,0.00013744,2]
[402210352,1768605124866,-150.0,0.00013743,2]
[402210353,1768605124919,-9700.01,0.00013744,2]
[402210354,1768605128296,-300.0,0.00013743,2]
[402210355,1768605128426,-9400.01,0.00013744,2]
[402210356,1768605128466,-4188.1584,0.00013744,2]
[402210357,1768605128590,-1623.6932,0.00013744,2]
[402210358,1768605128635,-2500.0,0.00013744,2]
[402210359,1768605128667,-2166.48620429,0.00013744,2]
[402210360,1768605128770,-667.03759142,0.00013744,2]
[402210361,1768605128801,-193.314864,0.00013774,2]
[402210362,1768605128830,-150.0,0.00013843,2]
[402210363,1768605128859,-150.0,0.00013843,2]
[402210364,1768605128889,-300.0,0.00013843,2]
[402210365,1768605128920,-250.0,0.00013843,2]
[402210366,1768605129120,-150.0,0.00013844,2]
[402210367,1768605129139,-300.0,0.00013844,2]
[402210368,1768605129176,-250.0,0.00013844,2]
[402210369,1768605129192,-6579.30508916,0.00013844,2]
[402210370,1768605131032,-200.0,0.00013797,2]
[402210371,1768605131065,-848.2652921,0.00013799,2]
[402210372,1768605131147,-7903.4794158,0.00013844,2]
[402210373,1768605131227,-10000.01,0.00013844,2]
[402210374,1768605134315,-10000.01,0.00013844,2]
[402210375,1768605134462,-10000.01,0.00013844,2]
[402210376,1768605165626,-358.76635404,0.00013744,2]
[402210377,1768605224548,-451.33295657,0.00013743,2]
[402210378,1768605256457,-259.03159536,0.00013743,2]
[402210379,1768605300137,-322.97458823,0.00013743,2]
[402210380,1768605304483,-166.66085984,0.00013743,2]
[402210381,1768605304508,-106.98113996,0.00013743,2]
[402210382,1768605307235,-196.47073177,0.00013743,2]
[402210383,1768605309076,-173.15593603,0.00013743,2]
[402210384,1768605330616,-267.93573343,0.00013734,2]
[402210385,1768605333128,-300.0,0.00013734,2]
[402210386,1768605335745,-274.0,0.00013734,2]
[402210387,1768605337800,-481.1193947,0.00013734,2]
[402210388,1768605419972,-162.03551096,0.00013733,2]
[402210393,1768605446708,229.19472414,0.00013644,2]
[402210394,1768605480033,-174.07093183,0.00013732,2]
[402210395,1768605482782,-249.66231831,0.00013732,2]
[402210396,1768605485880,-50.33768169,0.00013732,2]
[402210397,1768605485904,-150.0,0.00013732,2]
[402210398,1768605485927,-208.35354565,0.00013733,2]
[402210399,1768605487995,-129.61094339,0.00013733,2]
[402210400,1768605488024,-102.21589598,0.00013733,2]
[402210401,1768605489536,-397.78410402,0.00013733,2]
[402210402,1768605489558,-10.86991562,0.00013733,2]
[402210403,1768605491074,-188.75441492,0.00013733,2]
[402210404,1768605496404,-250.0,0.00013733,2]
[402210405,1768605498982,-161.17307281,0.00013732,2]
[402210406,1768605510720,-175.18993183,0.00013732,2]
[402210407,1768605512374,-435.18522633,0.00013732,2]
[402210412,1768605521985,395.73969879,0.00013633,2]
[402210413,1768605528261,395.73969877,0.00013639,2]
[402210414,1768605534134,395.73969877,0.00013644,2]
[402210425,1768605615015,-392.03553852,0.00013731,2]
[402210426,1768605645071,-161.10628558,0.00013731,2]
[402210427,1768605647763,-300.0,0.00013731,2]
[402210434,1768605702049,154.33,6.829e-05,2]
[402210435,1768605702177,154.33,7.256e-05,2]
[402210436,1768605702371,154.33,7.683e-05,2]
[402210437,1768605702570,154.33,8.109e-05,2]
[402210438,1768605702776,154.33,8.536e-05,2]
[402210439,1768605702963,154.33,8.963e-05,2]
[402210440,1768605703192,154.33,9.39e-05,2]
[402210441,1768605703367,154.33,9.817e-05,2]
[402210442,1768605703559,154.33,0.00010244,2]
[402210443,1768605703770,154.33,0.0001067,2]
[402210444,1768605703960,154.33,0.00011097,2]
[402210445,1768605704384,154.33,0.00011524,2]
[402210446,1768605704524,154.33,0.00011951,2]
[402210447,1768605704594,154.33,0.00012378,2]
[402210448,1768605704768,154.33,0.00012804,2]
[402210449,1768605704982,154.33,0.00013231,2]
[402210450,1768605705369,154.33,0.00013658,2]
[402210451,1768605730036,840.2166,0.00013633,2]
[402210452,1768605735032,-150.0,0.0001373,2]
[402210453,1768605735058,-117.33818935,0.0001373,2]
[402210454,1768605736235,236.7828,0.00013633,2]
[402210455,1768605737350,-163.71742833,0.0001373,2]
[402210458,1768605739555,-18.94438232,0.0001373,2]
[402210459,1768605739579,-222.70457253,0.0001373,2]
[402210462,1768605741661,-77.29542747,0.0001373,2]
[402210463,1768605741684,-100.88581041,0.0001373,2]
[402210466,1768605745426,-205.66373875,0.0001373,2]
[402210467,1768605745450,-38.89371442,0.00013731,2]
[402210468,1768605745478,-23.44254683,0.00013731,2]
[402210469,1768605746522,-159.77860431,0.00013731,2]
[402210471,1768605749165,-206.46217732,0.00013731,2]
[402210473,1768605751732,-296.08641494,0.00013731,2]
[402210474,1768605751757,-151.02826612,0.00013731,2]
[402210475,1768605753801,-276.20372059,0.00013731,2]
[402210476,1768605756091,-163.2862865,0.00013731,2]
[402210477,1768605758106,-159.97026643,0.0001373,2]
[402210478,1768605768195,-80.77139328,0.0001373,2]
[402210479,1768605768228,-335.76910075,0.0001373,2]
[402210480,1768605771301,-164.23089925,0.0001373,2]
[402210481,1768605771331,-135.76910075,0.0001373,2]
[402210482,1768605774553,-364.23089925,0.0001373,2]
[402210483,1768605774582,-76.80421919,0.0001373,2]
[402210484,1768605778836,-309.3620277,0.0001373,2]
[402210485,1768605783618,-113.83375311,0.0001373,2]
[402210486,1768605783648,-47.93646605,0.0001373,2]
[402210487,1768605785163,-395.97162281,0.0001373,2]
[402210488,1768605789636,-56.09191114,0.0001373,2]
[402210489,1768605789666,-252.87448553,0.0001373,2]
[402210490,1768605792425,-247.12551447,0.0001373,2]
[402210491,1768605792454,-6.89344927,0.0001373,2]
[402210492,1768605793934,-304.11165242,0.0001373,2]
[402210493,1768605795980,-158.08497831,0.0001373,2]
[402210494,1768605798250,-269.0,0.00013729,2]
[402210495,1768605798281,-30.90992,0.0001373,2]
[402210496,1768605798313,-140.46149896,0.0001373,2]
[402210497,1768605802487,-310.30064526,0.0001373,2]
[402210498,1768605804829,-49.23785578,0.0001373,2]
[402210499,1768605804860,-135.22726174,0.0001373,2]
[402210500,1768605809042,-212.61091557,0.0001373,2]
[402210501,1768605811627,-152.16182269,0.0001373,2]
[402210502,1768605811673,-192.35972967,0.0001373,2]
[402210503,1768605814282,-236.60113,0.0001373,2]
[402210507,1768605817534,-71.03914033,0.0001373,2]
[402210508,1768605817566,-114.70889271,0.0001373,2]
[402210509,1768605821561,-264.99371674,0.0001373,2]
[402210510,1768605823688,-120.29739055,0.0001373,2]
[402210511,1768605823715,-74.70260945,0.0001373,2]
[402210512,1768605824731,3101.0644,0.00013633,2]
[402210513,1768605826126,-159.99371674,0.0001373,2]
[402210514,1768605828739,-265.30367381,0.0001373,2]
[402210515,1768605828774,-234.69632619,0.0001373,2]
[402210517,1768605830446,-204.99371674,0.0001373,2]
[402210518,1768605830901,5821.9462,0.00013633,2]
[402210519,1768605830924,10000.01,0.00013633,2]
[402210520,1768605830950,10000.01,0.00013633,2]
[402210521,1768605830978,4178.0638,0.00013633,2]
[402210522,1768605879959,4389.8221687,0.00013644,2]
[402210530,1768605935607,5272.46458787,0.0001,2]
[402210532,1768605952110,4727.54541213,0.000136,2]
[402210533,1768605952134,10000.01,0.000136,2]
[402210534,1768605952158,10000.01,0.000136,2]
[402210535,1768605952180,10000.01,0.000136,2]
[402210536,1768605952203,10000.01,0.000136,2]
[402210537,1768605952227,10000.01,0.000136,2]
[402210538,1768605952252,8790.04515961,0.000136,2]
[402210540,1768605953331,204.9937,0.00013633,2]
[402210541,1768605959532,-230.01256652,0.00013729,2]
[402210548,1768606032504,1700.0,0.000139,5]
[402210553,1768606079521,-322.55755526,0.00013727,2]
[402210554,1768606081676,1004.97114039,0.00013629,2]
[402210555,1768606081722,10000.01,0.00013629,2]
[402210556,1768606081772,10000.01,0.00013629,2]
[402210557,1768606081819,10000.01,0.00013629,2]
[402210558,1768606081865,10000.01,0.00013629,2]
[402210559,1768606081912,10000.01,0.00013629,2]
[402210560,1768606081959,10000.01,0.00013629,2]
[402210561,1768606082007,10000.01,0.00013629,2]
[402210562,1768606082055,10000.01,0.00013629,2]
[402210563,1768606082105,10000.01,0.00013629,2]
[402210564,1768606088211,-212.74395336,0.000135,2]
[402210565,1768606094855,-6966.62230411,0.00013629,2]
[402210566,1768606094990,-10000.01,0.00013629,2]
[402210567,1768606095061,-10000.01,0.00013629,2]
[402210568,1768606095115,-10000.01,0.00013629,2]
[402210569,1768606095136,-10000.01,0.00013629,2]
[402210570,1768606095259,-10000.01,0.00013629,2]
[402210571,1768606095421,-10000.01,0.00013629,2]
[402210572,1768606095581,-10000.01,0.00013629,2]
[402210573,1768606095734,-10000.01,0.00013629,2]
[402210574,1768606095877,-10000.01,0.00013629,2]
[402210575,1768606097789,-10000.01,0.00013629,2]
[402210576,1768606101249,-293.44573887,0.00013627,2]
[402210577,1768606101280,-1200.0,0.00013628,2]
[402210578,1768606101350,-7013.11852226,0.00013629,2]
[402210579,1768606101500,-10000.01,0.00013629,2]
[402210580,1768606101700,-10000.01,0.00013629,2]
[402210581,1768606101826,-10000.01,0.00013629,2]
[402210582,1768606101981,-10000.01,0.00013629,2]
[402210583,1768606102127,-10000.01,0.00013629,2]
[402210584,1768606103277,-10000.01,0.00013629,2]
[402210585,1768606103298,-10000.01,0.00013629,2]
[402210586,1768606104121,-10000.01,0.00013629,2]
[402210587,1768606107309,-3527.03038544,0.00013627,2]
[402210588,1768606107342,-2945.94922912,0.00013627,2]
[402210589,1768606107552,-10000.01,0.00013629,2]
[402210590,1768606107712,-10000.01,0.00013629,2]
[402210591,1768606107766,-10000.01,0.00013629,2]
[402210592,1768606107871,-10000.01,0.00013629,2]
[402210593,1768606108006,-10000.01,0.00013629,2]
[402210594,1768606108142,-10000.01,0.00013629,2]
[402210595,1768606108296,-10000.01,0.00013629,2]
[402210597,1768606131115,-280.12035819,0.00013628,2]
[402210598,1768606131182,-336.21776123,0.00013628,2]
[402210599,1768606131242,-500.0,0.00013628,2]
[402210600,1768606131302,-402.79290628,0.00013628,2]
[402210601,1768606131365,-500.0,0.00013628,2]
[402210602,1768606131432,-618.48079492,0.00013628,2]
[402210603,1768606131501,-927.35033727,0.00013628,2]
[402210604,1768606131570,-927.35033727,0.00013628,2]
[402210605,1768606131641,-88.03467241,0.00013628,2]
[402210606,1768606132179,-839.31566486,0.00013628,2]
[402210607,1768606132219,-927.35033727,0.00013628,2]
[402210608,1768606132258,-927.35033727,0.00013628,2]
[402210609,1768606132296,-927.35033727,0.00013628,2]
[402210610,1768606132335,-927.35033727,0.00013628,2]
[402210611,1768606132433,-927.35033727,0.00013628,2]
[402210612,1768606132472,-927.35033727,0.00013628,2]
[402210613,1768606132512,-927.35033727,0.00013628,2]
[402210614,1768606132556,-927.35033727,0.00013628,2]
[402210615,1768606132596,-927.35033727,0.00013628,2]
[402210616,1768606132747,-927.35033727,0.00013628,2]
[402210617,1768606132785,-927.35033727,0.00013628,2]
[402210618,1768606132826,-927.35033727,0.00013628,2]
[402210619,1768606132875,-927.35033727,0.00013628,2]
[402210620,1768606132916,-927.35033727,0.00013628,2]
[402210621,1768606133014,-927.35033727,0.00013628,2]
[402210622,1768606133064,-927.35033727,0.00013628,2]
[402210623,1768606133117,-927.35033727,0.00013628,2]
[402210624,1768606133155,-927.35033727,0.00013628,2]
[402210625,1768606133193,-927.35033727,0.00013628,2]
[402210626,1768606133277,-927.35033727,0.00013628,2]
[402210627,1768606133317,-927.35033727,0.00013628,2]
[402210628,1768606133355,-927.35033727,0.00013628,2]
[402210629,1768606133394,-927.35033727,0.00013628,2]
[402210630,1768606133433,-927.35033727,0.00013628,2]
[402210631,1768606133496,-927.35033727,0.00013628,2]
[402210632,1768606133534,-927.35033727,0.00013628,2]
[402210633,1768606133572,-927.35033727,0.00013628,2]
[402210634,1768606133611,-927.35033727,0.00013628,2]
[402210635,1768606133650,-927.35033727,0.00013628,2]
[402210636,1768606133775,-927.35033727,0.00013628,2]
[402210637,1768606133813,-927.35033727,0.00013628,2]
[402210638,1768606133850,-927.35033727,0.00013628,2]
[402210639,1768606133891,-927.35033727,0.00013628,2]
[402210640,1768606133931,-927.35033727,0.00013628,2]
[402210641,1768606135734,-35.94082498,0.00013628,2]
[402210642,1768606135756,-726.5066273,0.00013628,2]
[402210643,1768606135791,-164.90288499,0.00013628,2]
[402210644,1768606135801,-762.44745228,0.00013628,2]
[402210645,1768606135817,-164.90288499,0.00013628,2]
[402210646,1768606135827,-762.44745228,0.00013629,2]
[402210647,1768606135852,-927.35033727,0.00013629,2]
[402210648,1768606135874,-927.35033727,0.00013629,2]
[402210649,1768606135892,-927.35033727,0.00013629,2]
[402210650,1768606135919,-726.5066273,0.00013629,2]
[402210651,1768606136194,-10000.01,0.00013629,2]
[402210652,1768606136220,-10000.01,0.00013629,2]
[402210653,1768606137042,-10000.01,0.00013629,2]
[402210654,1768606137218,-10000.01,0.00013629,2]
[402210656,1768606137361,-10000.01,0.00013629,2]
[402210657,1768606137509,-10000.01,0.00013629,2]
[402210681,1768606231533,-1200.0,0.00013627,2]
[402210682,1768606231542,-150.0,0.00013627,2]
[402210683,1768606231552,-300.0,0.00013627,2]
[402210684,1768606231561,-882.76618643,0.00013628,2]
[402210685,1768606231571,-882.76618643,0.00013628,2]
[402210686,1768606231581,-882.76618643,0.00013628,2]
[402210687,1768606231591,-882.76618643,0.00013628,2]
[402210688,1768606231601,-882.76618643,0.00013628,2]
[402210689,1768606231611,-882.76618643,0.00013628,2]
[402210690,1768606231620,-882.76618643,0.00013628,2]
[402210691,1768606231630,-882.76618643,0.00013628,2]
[402210692,1768606231640,-882.76618643,0.00013628,2]
[402210693,1768606231650,-882.76618643,0.00013628,2]
[402210694,1768606231659,-882.76618643,0.00013628,2]
[402210695,1768606231668,-882.76618643,0.00013628,2]
[402210696,1768606231678,-882.76618643,0.00013628,2]
[402210697,1768606231687,-882.76618643,0.00013628,2]
[402210699,1768606231695,-882.76618643,0.00013628,2]
[402210701,1768606231704,-882.76618643,0.00013628,2]
[402210703,1768606231714,-882.76618643,0.00013628,2]
[402210705,1768606231723,-882.76618643,0.00013628,2]
[402210706,1768606231732,-882.76618643,0.00013628,2]
[402210708,1768606231741,-882.76618643,0.00013628,2]
[402210710,1768606231750,-882.76618643,0.00013628,2]
[402210712,1768606231760,-882.76618643,0.00013628,2]
[402210714,1768606231769,-882.76618643,0.00013628,2]
[402210716,1768606231778,-882.76618643,0.00013628,2]
[402210718,1768606231787,-882.76618643,0.00013628,2]
[402210720,1768606231796,-882.76618643,0.00013628,2]
[402210722,1768606231806,-882.76618643,0.00013628,2]
[402210724,1768606231815,-882.76618643,0.00013628,2]
[402210725,1768606231825,-882.76618643,0.00013628,2]
[402210726,1768606231834,-882.76618643,0.00013628,2]
[402210728,1768606231844,-882.76618643,0.00013628,2]
[402210730,1768606231853,-882.76618643,0.00013628,2]
[402210731,1768606231863,-528.58626273,0.00013628,2]
[402210732,1768606231872,-321.18898703,0.00013628,2]
[402210733,1768606231881,-262.0,0.00013628,2]
[402210734,1768606231894,-71963.65378486,0.00013629,2]
[402210735,1768606231906,-206213.53675933,0.00013629,2]
[402210736,1768606231937,-999.0,0.00013629,2]
[402210737,1768606231967,-995.88708944,0.00013629,2]
[402210738,1768606231979,-3109.69,0.00013629,2]
[402210739,1768606231989,-1446.7295,0.00013629,2]
[402210740,1768606237645,-452.53796481,0.00013628,2]
[402210741,1768606237657,-47.46203519,0.00013628,2]
[402210742,1768606237666,-483.83529027,0.00013628,2]
[402210743,1768606237677,-16.16470973,0.00013628,2]
[402210744,1768606237687,-500.0,0.00013628,2]
[402210745,1768606237696,-500.0,0.00013628,2]
[402210746,1768606237706,-500.0,0.00013628,2]
[402210747,1768606237715,-500.0,0.00013628,2]
[402210748,1768606237724,-500.0,0.00013628,2]
[402210749,1768606237733,-488.14335844,0.00013628,2]
[402210750,1768606237744,-11.85664156,0.00013628,2]
[402210751,1768606237754,-500.0,0.00013628,2]
[402210752,1768606237763,-500.0,0.00013628,2]
[402210753,1768606237772,-500.0,0.00013628,2]
[402210754,1768606237782,-500.0,0.00013628,2]
[402210755,1768606237791,-500.0,0.00013628,2]
[402210756,1768606237802,-500.0,0.00013628,2]
[402210757,1768606237811,-52.14335844,0.00013628,2]
[402210758,1768606237825,-447.85664156,0.00013628,2]
[402210759,1768606237836,-500.0,0.00013628,2]
[402210760,1768606237846,-500.0,0.00013628,2]
[402210761,1768606237856,-500.0,0.00013628,2]
[402210762,1768606237867,-500.0,0.00013628,2]
[402210763,1768606237877,-500.0,0.00013628,2]
[402210764,1768606237889,-500.0,0.00013628,2]
[402210765,1768606237898,-500.0,0.00013628,2]
[402210767,1768606237908,-500.0,0.00013628,2]
[402210769,1768606237917,-3180.95845844,0.00013629,2]
[402210771,1768606237928,-826.21292711,0.00013629,2]
[402210774,1768606237951,-1811.80915,0.00013629,2]
[402211013,1768606240566,-1.7e-07,0.00013629,2]
[402211033,1768606240748,-290196.4052725,0.00013629,2]
[402211035,1768606240757,-677.44244474,0.00013727,2]
[402211037,1768606240766,-697.33,0.00013732,2]
[402211039,1768606240775,-1992.6875,0.00013744,2]
[402211041,1768606240784,-500.0,0.00013744,2]
[402211043,1768606240793,-33212.9972,0.00013744,2]
[402211045,1768606240802,-2345.3081,0.00013744,2]
[402211047,1768606240811,-200.0,0.00013836,2]
[402211049,1768606240821,-151.0,0.00013836,2]
[402211051,1768606240829,-151.0,0.00013836,2]
[402211053,1768606240838,-151.0,0.00013836,2]
[402211055,1768606240848,-151.0,0.00013836,2]
[402211057,1768606240857,-151.0,0.00013836,2]
[402211059,1768606240866,-151.0,0.00013836,2]
[402211061,1768606240875,-151.0,0.00013836,2]
[402211063,1768606240885,-151.0,0.00013836,2]
[402211065,1768606240898,-151.0,0.00013836,2]
[402211067,1768606240907,-151.0,0.00013836,2]
[402211069,1768606240916,-151.0,0.00013836,2]
[402211071,1768606240927,-151.0,0.00013836,2]
[402211073,1768606240936,-151.0,0.00013836,2]
[402211075,1768606240944,-200.0,0.00013836,2]
[402211077,1768606240954,-151.0,0.00013836,2]
[402211079,1768606240965,-151.0,0.00013836,2]
[402211081,1768606240974,-151.0,0.00013836,2]
[402211083,1768606240983,-190.25340897,0.00013836,2]
[402211085,1768606240993,-151.0,0.00013836,2]
[402211087,1768606241002,-151.0,0.00013836,2]
[402211089,1768606241011,-151.0,0.00013836,2]
[402211091,1768606241020,-500.0,0.00013836,2]
[402211093,1768606241029,-151.0,0.00013836,2]
[402211095,1768606241038,-151.0,0.00013836,2]
[402211097,1768606241047,-151.0,0.00013836,2]
[402211099,1768606241056,-151.0,0.00013836,2]
[402211101,1768606241066,-151.0,0.00013836,2]
[402211103,1768606241075,-151.0,0.00013836,2]
[402211105,1768606241084,-151.0,0.00013836,2]
[402211107,1768606241093,-151.0,0.00013836,2]
[402211109,1768606241103,-500.0,0.00013836,2]
[402211111,1768606241112,-500.0,0.00013836,2]
[402211113,1768606241121,-500.0,0.00013836,2]
[402211114,1768606241130,-200.0,0.00013836,2]
[402211117,1768606241139,-500.0,0.00013836,2]
[402211118,1768606241148,-500.0,0.00013836,2]
[402211120,1768606241158,-500.0,0.00013836,2]
[402211122,1768606241167,-500.0,0.00013836,2]
[402211124,1768606241177,-500.0,0.00013836,2]
[402211127,1768606241186,-500.0,0.00013836,2]
[402211128,1768606241195,-500.0,0.00013836,2]
[402211130,1768606241205,-199.0,0.00013843,2]
[402211133,1768606241214,-200.0,0.00013844,2]
[402211134,1768606241223,-200.0,0.000139,2]
[402211136,1768606241233,-200.0,0.00013982,2]
[402211139,1768606241243,-1000.0,0.00014,2]
[402211141,1768606241252,-289.84074202,0.00014,2]
[402211143,1768606241261,-697.33,0.00014006,2]
[402211144,1768606241270,-200.0,0.00014039,2]
[402211147,1768606241280,-525.29097459,0.00014099,2]
[402211148,1768606241289,-500.0,0.00014099,2]
[402211150,1768606241298,-500.0,0.00014099,2]
[402211153,1768606241307,-500.0,0.00014099,2]
[402211155,1768606241317,-500.0,0.00014099,2]
[402211157,1768606241327,-437.56042385,0.00014099,2]
[402211159,1768606241336,-500.0,0.00014099,2]
[402211161,1768606241346,-500.0,0.00014099,2]
[402211163,1768606241355,-500.0,0.00014099,2]
[402211165,1768606241364,-500.0,0.00014099,2]
[402211167,1768606241374,-500.0,0.00014099,2]
[402211168,1768606241384,-500.0,0.00014099,2]
[402211171,1768606241393,-500.0,0.00014099,2]
[402211172,1768606241403,-500.0,0.00014099,2]
[402211175,1768606241412,-500.0,0.00014099,2]
[402211176,1768606241421,-500.0,0.00014099,2]
[402211178,1768606241431,-500.0,0.00014099,2]
[402211180,1768606241440,-500.0,0.00014099,2]
[402211182,1768606241450,-6472.97961448,0.00014102,2]
[402211184,1768606241459,-1500.0,0.00014116,2]
[402211186,1768606241468,-4389.82216868,0.00014117,2]
[402211188,1768606241477,-200.0,0.00014122,2]
[402211190,1768606241487,-351.69,0.00014154,2]
[402211192,1768606241496,-4232.71,0.0001416,2]
[402211194,1768606241505,-500.0,0.00014173,2]
[402211196,1768606241515,-200.0,0.00014179,2]
[402211198,1768606241523,-200.0,0.00014263,2]
[402211200,1768606241533,-697.33,0.0001428,2]
[402211202,1768606241543,-2683.20798238,0.000143,2]
[402211204,1768606241552,-200.0,0.00014321,2]
[402211206,1768606241561,-500.0,0.00014384,2]
[402211208,1768606241571,-848.26529208,0.00014385,2]
[402211210,1768606241580,-200.0,0.00014406,2]
[402211212,1768606241589,-163.15295661,0.00014464,2]
[402211214,1768606241599,-697.33,0.00014554,2]
[402211216,1768606241608,-6472.97961448,0.00014577,2]
[402211218,1768606241617,-4389.82216868,0.0001459,2]
[402211220,1768606241628,-255.0,0.00014744,2]
[402211222,1768606241637,-697.33,0.00014828,2]
[402211224,1768606241646,-151.0,0.00014899,2]
[402211226,1768606241655,-151.0,0.00014899,2]
[402211228,1768606241664,-151.0,0.00014901,2]
[402211230,1768606241673,-151.0,0.00014901,2]
[402211232,1768606241682,-420.0,0.00014935,2]
[402211234,1768606241691,-351.69,0.00014941,2]
[402211236,1768606241699,-848.26529208,0.00014971,2]
[402211238,1768606241708,-351.98881467,0.0001499,2]
[402211240,1768606241717,-250.0,0.00014991,2]
[402211242,1768606241726,-300.0,0.00014991,2]
[402211244,1768606241735,-368.81406335,0.00014992,2]
[402211246,1768606241744,-6472.97961448,0.00015051,2]
[402211248,1768606241754,-4389.82216868,0.00015063,2]
[402211250,1768606241763,-697.33,0.00015102,2]
[402211252,1768606241771,-320.09,0.00015114,2]
[402211254,1768606241780,-574.96731124,0.0001531,2]
[402211256,1768606241789,-500.0,0.00015312,2]
[402211258,1768606241799,-500.0,0.00015312,2]